fUST/lending_fUST_20240818
["ID","MTS","AMOUNT","RATE_DAILY","PERIOD"]
[335215700,1723985452274,-500.0,0.00016986,2]
[335215701,1723985452284,-500.0,0.00016986,2]
[335215702,1723985452294,-500.0,0.00016986,2]
[335215703,1723985452303,-500.0,0.00016986,2]
[335215704,1723985452314,-527.0,0.00016986,2]
[335215705,1723985452324,-500.0,0.00016986,2]
[335215706,1723985452334,-500.0,0.00016986,2]
[335215707,1723985452343,-587.16184139,0.00016986,2]
[335215708,1723985452446,-666.38,0.00016986,2]
[335215709,1723985452456,-500.0,0.00016986,2]
[335215710,1723985452466,-1336.64,0.00016986,2]
[335215711,1723985452476,-500.0,0.00016986,2]
[335215712,1723985452486,-679.8,0.00016986,2]
[335215713,1723985452495,-598.34,0.00016986,2]
[335215714,1723985452505,-500.0,0.00016986,2]
[335215715,1723985452515,-500.0,0.00016986,2]
[335215716,1723985452528,-500.0,0.00016986,2]
[335215717,1723985452538,-952.18,0.00016986,2]
[335215718,1723985452548,-500.0,0.00016986,2]
[335215719,1723985452558,-683.21,0.00016986,2]
[335215720,1723985452569,-500.0,0.00016986,2]
[335215721,1723985452578,-558.85,0.00016986,2]
[335215722,1723985452589,-500.0,0.00016986,2]
[335215723,1723985452598,-692.1,0.00016986,2]
[335215724,1723985452609,-500.0,0.00016986,2]
[335215725,1723985452619,-500.0,0.00016986,2]
[335215726,1723985452628,-500.0,0.00016986,2]
[335215727,1723985452638,-634.02,0.00016986,2]
[335215728,1723985452648,-500.0,0.00016986,2]
[335215729,1723985452657,-500.0,0.00016986,2]
[335215730,1723985452667,-752.2,0.00016986,2]
[335215731,1723985452677,-500.0,0.00016986,2]
[335215732,1723985452687,-500.0,0.00016986,2]
[335215733,1723985452697,-500.0,0.00016986,2]
[335215734,1723985452706,-500.0,0.00016986,2]
[335215735,1723985452715,-602.37,0.00016986,2]
[335215736,1723985452725,-762.86,0.00016986,2]
[335215737,1723985452734,-373.20994322,0.00016986,2]
[335215738,1723985452743,-500.0,0.00016986,2]
[335215739,1723985452753,-500.0,0.00016986,2]
[335215740,1723985452763,-500.0,0.00016986,2]
[335215741,1723985452772,-500.0,0.00016986,2]
[335215742,1723985452781,-500.0,0.00016986,2]
[335215743,1723985452790,-500.0,0.00016986,2]
[335215744,1723985452800,-500.0,0.00016986,2]
[335215745,1723985452811,-500.0,0.00016986,2]
[335215746,1723985452820,-672.14,0.00016986,2]
[335215747,1723985452831,-500.0,0.00016986,2]
[335215748,1723985452840,-500.0,0.00016986,2]
[335215749,1723985452849,-500.0,0.00016986,2]
[335215750,1723985452859,-500.0,0.00016986,2]
[335215751,1723985452868,-500.0,0.00016986,2]
[335215752,1723985452877,-500.0,0.00016986,2]
[335215753,1723985452887,-501.55,0.00016986,2]
[335215754,1723985452896,-500.0,0.00016986,2]
[335215755,1723985452906,-500.0,0.00016986,2]
[335215756,1723985452915,-500.0,0.00016986,2]
[335215757,1723985452925,-500.0,0.00016986,2]
[335215758,1723985452934,-500.0,0.00016986,2]
[335215759,1723985452944,-511.13830714,0.00016986,2]
[335215760,1723985452953,-151.0,0.00016986,2]
[335215761,1723985452963,-500.0,0.00016986,2]
[335215762,1723985452973,-500.0,0.00016986,2]
[335215763,1723985452982,-500.0,0.00016986,2]
[335215764,1723985452993,-500.0,0.00016986,2]
[335215765,1723985453003,-500.0,0.00016986,2]
[335215766,1723985453012,-981.48,0.00016986,2]
[335215767,1723985453022,-647.0,0.00016986,2]
[335215768,1723985453031,-500.0,0.00016986,2]
[335215769,1723985453041,-750.71,0.00016986,2]
[335215770,1723985453050,-500.0,0.00016986,2]
[335215771,1723985453059,-500.0,0.00016986,2]
[335215772,1723985453069,-500.0,0.00016986,2]
[335215773,1723985453078,-500.0,0.00016986,2]
[335215774,1723985453088,-500.0,0.00016986,2]
[335215775,1723985453097,-500.0,0.00016986,2]
[335215776,1723985453106,-525.76,0.00016986,2]
[335215777,1723985453116,-500.0,0.00016986,2]
[335215778,1723985453126,-500.0,0.00016986,2]
[335215779,1723985453136,-533.66,0.00016986,2]
[335215780,1723985453145,-500.0,0.00016986,2]
[335215781,1723985453155,-500.0,0.00016986,2]
[335215782,1723985453164,-523.53726131,0.00016986,2]
[335215783,1723985453173,-1000.0,0.00016986,2]
[335215784,1723985453183,-500.0,0.00016986,2]
[335215785,1723985453192,-500.0,0.00016986,2]
[335215786,1723985453202,-500.0,0.00016986,2]
[335215787,1723985453211,-500.0,0.00016986,2]
[335215788,1723985453220,-779.83,0.00016986,2]
[335215789,1723985453230,-537.42185925,0.00016986,2]
[335215790,1723985453239,-660.2,0.00016986,2]
[335215791,1723985453249,-500.0,0.00016986,2]
[335215792,1723985453258,-500.0,0.00016986,2]
[335215793,1723985453268,-500.0,0.00016986,2]
[335215794,1723985453277,-500.0,0.00016986,2]
[335215795,1723985453287,-500.0,0.00016986,2]
[335215796,1723985453296,-500.0,0.00016986,2]
[335215797,1723985453305,-500.0,0.00016986,2]
[335215798,1723985453315,-500.0,0.00016986,2]
[335215799,1723985453325,-500.0,0.00016986,2]
[335215800,1723985453334,-721.88,0.00016986,2]
[335215801,1723985453344,-260.66261459,0.00016986,2]
[335215802,1723985453353,-500.0,0.00016986,2]
[335215803,1723985453362,-500.0,0.00016986,2]
[335215804,1723985453372,-500.0,0.00016986,2]
[335215805,1723985453381,-500.0,0.00016986,2]
[335215806,1723985453391,-500.0,0.00016986,2]
[335215807,1723985453400,-448.52008498,0.00016986,2]
[335215808,1723985453409,-515.95,0.00016986,2]
[335215809,1723985453419,-619.99,0.00016986,2]
[335215810,1723985453429,-617.92,0.00016986,2]
[335215811,1723985453438,-500.0,0.00016986,2]
[335215812,1723985453447,-500.0,0.00016986,2]
[335215813,1723985453457,-500.0,0.00016986,2]
[335215814,1723985453466,-500.0,0.00016986,2]
[335215815,1723985453476,-1015.01,0.00016986,2]
[335215816,1723985453485,-500.0,0.00016986,2]
[335215817,1723985453495,-500.0,0.00016986,2]
[335215818,1723985453504,-500.0,0.00016986,2]
[335215819,1723985453514,-430.66362361,0.00016986,2]
[335215820,1723985453560,-69.33637639,0.00016986,2]
[335215821,1723985453571,-500.0,0.00016986,2]
[335215822,1723985453581,-1191.2,0.00016986,2]
[335215823,1723985453591,-509.22755862,0.00016986,2]
[335215824,1723985453600,-1077.19,0.00016986,2]
[335215825,1723985453610,-500.0,0.00016986,2]
[335215826,1723985453620,-500.0,0.00016986,2]
[335215827,1723985453630,-410.26667269,0.00016986,2]
[335215828,1723985453639,-791.35,0.00016986,2]
[335215829,1723985453649,-473.67014223,0.00016986,2]
[335215830,1723985469015,244.01680632,9.9e-05,2]
[335215831,1723985477832,190.76353094,9.9e-05,2]
[335215832,1723985498531,166.4,5.479e-05,2]
[335215833,1723985572284,886.51060802,6.641e-05,2]
[335215834,1723985584174,1731.28913071,6.641e-05,2]
[335215835,1723985614239,356.69936343,6.641e-05,2]
[335215838,1723985795505,166.4,5.479e-05,2]
[335215843,1723986095023,166.4,5.479e-05,2]
[335215844,1723986104728,886.51060802,6.641e-05,2]
[335215845,1723986113244,4718.29455301,6.641e-05,2]
[335215846,1723986118104,218.62299037,6.641e-05,2]
[335215848,1723986146680,3738.18619151,8.05e-05,2]
[335215850,1723986163467,154.71377951,8.05e-05,2]
[335215851,1723986180848,-1249.45949084,9.703e-05,2]
[335215852,1723986180872,-273.37336231,9.801e-05,2]
[335215853,1723986182831,15267.16714685,9.757e-05,2]
[335215854,1723986199590,-1527.32594369,9.757e-05,2]
[335215855,1723986199613,-156.0682927,9.757e-05,2]
[335215856,1723986199638,-546.74672462,0.0001,2]
[335215857,1723986202424,154.77556307,9.757e-05,2]
[335215858,1723986221670,1626.86783463,9.757e-05,2]
[335215859,1723986237851,218.62299037,9.757e-05,2]
[335215860,1723986238265,1324.59265092,9.757e-05,2]
[335215861,1723986246080,-3393.70190209,9.757e-05,2]
[335215866,1723986323958,228.27887666,9.757e-05,2]
[335215867,1723986347078,404.65460675,9.757e-05,2]
[335215868,1723986395801,166.4,5.479e-05,2]
[335215869,1723986417801,4701.31086447,9.757e-05,2]
[335215871,1723986432673,2108.40472945,9.757e-05,2]
[335215872,1723986438136,-202.27,0.00010959,2]
[335215873,1723986438160,-168.56,0.00010959,2]
[335215874,1723986438186,-842.83,0.00010959,2]
[335215875,1723986445359,259.51050466,9.757e-05,2]
[335215876,1723986454344,-300.0,0.00011825,2]
[335215877,1723986454368,-886.51060802,0.00011826,2]
[335215878,1723986454392,-17036.60575934,0.00011988,2]
[335215879,1723986544832,-7863.39424066,0.00011988,2]
[335215880,1723986544855,-176.0,0.00011998,2]
[335215881,1723986544882,-7511.70001098,0.00011999,2]
[335215882,1723986556243,938.91313571,0.00011988,2]
[335215888,1723986582714,9554.90150087,0.00011999,2]
[335215926,1723986638968,-1500.0,0.00012516,2]
[335215927,1723986638979,-7012.68235792,0.00012551,2]
[335215928,1723986638988,-779.97165007,0.00012934,2]
[335215929,1723986639181,-155.35283135,0.00012971,2]
[335215930,1723986639195,-493.25192424,0.00012985,2]
[335215931,1723986639205,-156.84074619,0.00012989,2]
[335215932,1723986639217,-3022.26538486,0.00013697,2]
[335215949,1723986641135,-7622.3846271,0.00013697,2]
[335215950,1723986641144,-312.79107,0.00013699,2]
[335215951,1723986641155,-3000.0,0.00013699,2]
[335215952,1723986641165,-3345.5755331,0.00014147,2]
[335215953,1723986641175,-184.918108,0.00014247,2]
[335215955,1723986641186,-938.91313571,0.00014544,2]
[335215956,1723986641195,-500.0,0.00014864,2]
[335215957,1723986641205,-247.91301608,0.00016,2]
[335215958,1723986641216,-500.0,0.00016301,2]
[335215959,1723986641226,-558.60794433,0.00016301,2]
[335215960,1723986641236,-5244.23039316,0.00016302,2]
[335215961,1723986641247,-2000.0,0.00016328,2]
[335215962,1723986641257,-5244.23039316,0.00016389,2]
[335215963,1723986641267,-1000.45519801,0.000164,2]
[335215964,1723986641277,-3000.0,0.000164,2]
[335215965,1723986641286,-427.5871875,0.00016427,2]
[335215966,1723986641296,-500.0,0.00016427,2]
[335215967,1723986641309,-500.0,0.00016427,2]
[335215968,1723986641320,-500.0,0.00016427,2]
[335215969,1723986641329,-500.0,0.00016427,2]
[335215970,1723986641341,-440.97945743,0.00016427,2]
[335215971,1723986641352,-500.0,0.00016427,2]
[335215972,1723986641363,-500.0,0.00016427,2]
[335215973,1723986641372,-500.0,0.00016427,2]
[335215974,1723986641382,-307129.359918,0.00016428,2]
[335215975,1723986641393,-4006.67914097,0.00016438,2]
[335215976,1723986641404,-500.0,0.00016438,2]
[335215977,1723986641415,-513.76259266,0.00016438,2]
[335215978,1723986641425,-500.0,0.00016438,2]
[335215979,1723986641434,-500.0,0.00016438,2]
[335215980,1723986641444,-500.0,0.00016438,2]
[335215981,1723986641455,-553.69321237,0.00016438,2]
[335215982,1723986641465,-500.0,0.00016438,2]
[335215983,1723986641475,-500.0,0.00016438,2]
[335215984,1723986641485,-500.0,0.00016438,2]
[335215985,1723986641495,-500.0,0.00016438,2]
[335215986,1723986641505,-500.0,0.00016438,2]
[335215987,1723986641517,-500.0,0.00016438,2]
[335215988,1723986641527,-643.29991534,0.00016438,2]
[335215989,1723986641536,-500.0,0.00016438,2]
[335215990,1723986641547,-505.50000001,0.00016438,2]
[335215991,1723986641557,-500.0,0.00016438,2]
[335215992,1723986641571,-500.0,0.00016438,2]
[335215993,1723986641580,-504.05644384,0.00016438,2]
[335215994,1723986641590,-500.0,0.00016438,2]
[335215995,1723986641599,-500.0,0.00016438,2]
[335215996,1723986641610,-500.0,0.00016438,2]
[335215997,1723986641622,-500.0,0.00016438,2]
[335215998,1723986641632,-502.01994795,0.00016438,2]
[335215999,1723986641642,-500.0,0.00016438,2]
[335216000,1723986641652,-504.84887392,0.00016438,2]
[335216001,1723986641662,-459.05097986,0.00016438,2]
[335216002,1723986641676,-500.0,0.00016438,2]
[335216003,1723986641686,-509.76833442,0.00016438,2]
[335216004,1723986641696,-500.0,0.00016438,2]
[335216005,1723986641706,-500.0,0.00016438,2]
[335216006,1723986641716,-500.0,0.00016438,2]
[335216007,1723986641727,-500.0,0.00016438,2]
[335216008,1723986641736,-500.0,0.00016438,2]
[335216009,1723986641746,-500.0,0.00016438,2]
[335216010,1723986641757,-500.0,0.00016438,2]
[335216011,1723986641768,-500.0,0.00016438,2]
[335216012,1723986641778,-500.0,0.00016438,2]
[335216013,1723986641789,-500.0,0.00016438,2]
[335216014,1723986641800,-508.68572364,0.00016438,2]
[335216015,1723986641816,-505.44072963,0.00016438,2]
[335216016,1723986641826,-379.85518857,0.00016438,2]
[335216017,1723986641836,-500.0,0.00016438,2]
[335216018,1723986641846,-500.0,0.00016438,2]
[335216019,1723986641856,-500.0,0.00016438,2]
[335216020,1723986641867,-500.0,0.00016438,2]
[335216021,1723986641877,-500.0,0.00016438,2]
[335216022,1723986641889,-500.0,0.00016438,2]
[335216023,1723986641902,-500.0,0.00016438,2]
[335216024,1723986641912,-500.0,0.00016438,2]
[335216025,1723986641922,-500.0,0.00016438,2]
[335216026,1723986641933,-834.15,0.00016438,2]
[335216027,1723986641943,-467.06200236,0.00016438,2]
[335216028,1723986641953,-500.0,0.00016438,2]
[335216029,1723986641963,-500.0,0.00016438,2]
[335216030,1723986641973,-500.0,0.00016438,2]
[335216031,1723986641984,-762.81,0.00016438,2]
[335216032,1723986641994,-500.0,0.00016438,2]
[335216033,1723986642004,-500.0,0.00016438,2]
[335216034,1723986642014,-500.0,0.00016438,2]
[335216035,1723986642025,-500.0,0.00016438,2]
[335216036,1723986642034,-500.0,0.00016438,2]
[335216037,1723986642043,-500.0,0.00016438,2]
[335216038,1723986642053,-500.0,0.00016438,2]
[335216039,1723986642068,-500.0,0.00016438,2]
[335216040,1723986642078,-500.0,0.00016438,2]
[335216041,1723986642087,-500.0,0.00016438,2]
[335216042,1723986642096,-500.0,0.00016438,2]
[335216043,1723986642107,-500.0,0.00016438,2]
[335216044,1723986642116,-432.03554059,0.00016438,2]
[335216045,1723986642126,-500.0,0.00016438,2]
[335216046,1723986642135,-500.0,0.00016438,2]
[335216047,1723986642145,-500.0,0.00016438,2]
[335216048,1723986642155,-500.0,0.00016438,2]
[335216049,1723986642165,-500.0,0.00016438,2]
[335216050,1723986642175,-500.0,0.00016438,2]
[335216051,1723986642185,-500.0,0.00016438,2]
[335216052,1723986642194,-500.0,0.00016438,2]
[335216053,1723986642204,-536.03048308,0.00016438,2]
[335216054,1723986642213,-500.0,0.00016438,2]
[335216055,1723986642223,-500.0,0.00016438,2]
[335216056,1723986642232,-649.45,0.00016438,2]
[335216057,1723986642242,-500.0,0.00016438,2]
[335216058,1723986642251,-500.0,0.00016438,2]
[335216059,1723986642261,-500.0,0.00016438,2]
[335216060,1723986642271,-500.0,0.00016438,2]
[335216061,1723986642280,-500.0,0.00016438,2]
[335216062,1723986642290,-501.93888408,0.00016438,2]
[335216063,1723986642299,-660.33,0.00016438,2]
[335216064,1723986642315,-500.0,0.00016438,2]
[335216065,1723986642325,-500.0,0.00016438,2]
[335216066,1723986642335,-500.0,0.00016438,2]
[335216067,1723986642344,-500.0,0.00016438,2]
[335216068,1723986642354,-500.0,0.00016438,2]
[335216069,1723986642364,-549.48,0.00016438,2]
[335216070,1723986642374,-500.0,0.00016438,2]
[335216071,1723986642384,-508.38,0.00016438,2]
[335216072,1723986642394,-500.0,0.00016438,2]
[335216073,1723986642404,-500.0,0.00016438,2]
[335216074,1723986642414,-503.26337526,0.00016438,2]
[335216075,1723986642423,-921.72,0.00016438,2]
[335216076,1723986642433,-500.0,0.00016438,2]
[335216077,1723986642443,-641.54,0.00016438,2]
[335216078,1723986642453,-501.05059056,0.00016438,2]
[335216079,1723986642462,-526.31895576,0.00016438,2]
[335216080,1723986642472,-500.0,0.00016438,2]
[335216081,1723986642481,-500.0,0.00016438,2]
[335216082,1723986642491,-504.08150754,0.00016438,2]
[335216083,1723986642501,-500.0,0.00016438,2]
[335216084,1723986642510,-500.0,0.00016438,2]
[335216085,1723986642521,-500.0,0.00016438,2]
[335216086,1723986642531,-948.66,0.00016438,2]
[335216087,1723986642541,-500.0,0.00016438,2]
[335216088,1723986642551,-500.0,0.00016438,2]
[335216089,1723986642566,-500.0,0.00016438,2]
[335216090,1723986642575,-500.0,0.00016438,2]
[335216091,1723986642586,-500.0,0.00016438,2]
[335216092,1723986642595,-500.0,0.00016438,2]
[335216093,1723986642604,-503.93529281,0.00016438,2]
[335216094,1723986642614,-500.0,0.00016438,2]
[335216095,1723986642623,-500.0,0.00016438,2]
[335216096,1723986642634,-500.0,0.00016438,2]
[335216097,1723986642644,-500.0,0.00016438,2]
[335216098,1723986642653,-500.0,0.00016438,2]
[335216099,1723986642663,-609.75,0.00016438,2]
[335216100,1723986642672,-500.0,0.00016438,2]
[335216101,1723986642683,-500.0,0.00016438,2]
[335216102,1723986642694,-500.0,0.00016438,2]
[335216103,1723986642703,-500.0,0.00016438,2]
[335216104,1723986642714,-500.0,0.00016438,2]
[335216105,1723986642725,-500.0,0.00016438,2]
[335216106,1723986642735,-500.0,0.00016438,2]
[335216107,1723986642744,-500.0,0.00016438,2]
[335216108,1723986642754,-636.84,0.00016438,2]
[335216109,1723986642766,-383.34210581,0.00016438,2]
[335216110,1723986642777,-500.0,0.00016438,2]
[335216111,1723986642787,-500.0,0.00016438,2]
[335216112,1723986642799,-500.0,0.00016438,2]
[335216113,1723986642811,-500.0,0.00016438,2]
[335216114,1723986642821,-500.0,0.00016438,2]
[335216115,1723986642832,-500.0,0.00016438,2]
[335216116,1723986642842,-500.0,0.00016438,2]
[335216117,1723986642852,-535.61701437,0.00016438,2]
[335216118,1723986642865,-500.0,0.00016438,2]
[335216119,1723986642875,-500.0,0.00016438,2]
[335216120,1723986642886,-500.0,0.00016438,2]
[335216121,1723986642899,-569.44,0.00016438,2]
[335216122,1723986642908,-500.0,0.00016438,2]
[335216123,1723986642919,-611.83015375,0.00016438,2]
[335216124,1723986642930,-500.0,0.00016438,2]
[335216125,1723986642940,-500.0,0.00016438,2]
[335216126,1723986642949,-500.0,0.00016438,2]
[335216127,1723986642959,-500.0,0.00016438,2]
[335216128,1723986642970,-252.00719866,0.00016438,2]
[335216129,1723986642979,-500.0,0.00016438,2]
[335216130,1723986642989,-500.0,0.00016438,2]
[335216131,1723986642998,-500.0,0.00016438,2]
[335216132,1723986643008,-500.0,0.00016438,2]
[335216133,1723986643017,-200.0,0.00016438,2]
[335216134,1723986643033,-802.28,0.00016438,2]
[335216135,1723986643049,-500.0,0.00016438,2]
[335216136,1723986643060,-500.0,0.00016438,2]
[335216137,1723986643071,-669.83,0.00016438,2]
[335216138,1723986643083,-500.0,0.00016438,2]
[335216140,1723986643093,-720.66,0.00016438,2]
[335216142,1723986643104,-500.0,0.00016438,2]
[335216143,1723986643114,-500.0,0.00016438,2]
[335216144,1723986643124,-500.0,0.00016438,2]
[335216145,1723986643135,-500.0,0.00016438,2]
[335216146,1723986643145,-500.0,0.00016438,2]
[335216147,1723986643154,-500.0,0.00016438,2]
[335216148,1723986643164,-500.0,0.00016438,2]
[335216149,1723986643174,-516.95,0.00016438,2]
[335216150,1723986643184,-500.0,0.00016438,2]
[335216151,1723986643194,-507.97641047,0.00016438,2]
[335216152,1723986643204,-528.83,0.00016438,2]
[335216153,1723986643215,-500.0,0.00016438,2]
[335216154,1723986643225,-500.0,0.00016438,2]
[335216155,1723986643235,-500.0,0.00016438,2]
[335216156,1723986643244,-500.0,0.00016438,2]
[335216157,1723986643254,-500.0,0.00016438,2]
[335216158,1723986643264,-510.5141272,0.00016438,2]
[335216159,1723986643275,-515.67634002,0.00016438,2]
[335216160,1723986643285,-500.0,0.00016438,2]
[335216161,1723986643295,-645.52102326,0.00016438,2]
[335216163,1723986643305,-500.0,0.00016438,2]
[335216166,1723986643319,-505.41433615,0.00016438,2]
[335216171,1723986643328,-228.13925843,0.00016438,2]
[335216172,1723986643503,-500.0,0.00016438,2]
[335216173,1723986643513,-500.0,0.00016438,2]
[335216174,1723986643523,-756.75,0.00016438,2]
[335216175,1723986643533,-500.0,0.00016438,2]
[335216176,1723986643543,-500.0,0.00016438,2]
[335216177,1723986643552,-500.0,0.00016438,2]
[335216178,1723986643565,-500.0,0.00016438,2]
[335216179,1723986643575,-500.0,0.00016438,2]
[335216180,1723986643584,-500.0,0.00016438,2]
[335216181,1723986643593,-500.0,0.00016438,2]
[335216182,1723986643602,-418.11879524,0.00016438,2]
[335216183,1723986643613,-1355.37,0.00016438,2]
[335216184,1723986643622,-506.40033661,0.00016438,2]
[335216186,1723986643631,-500.0,0.00016438,2]
[335216188,1723986643641,-500.0,0.00016438,2]
[335216189,1723986643651,-500.0,0.00016438,2]
[335216190,1723986643661,-500.0,0.00016438,2]
[335216191,1723986643671,-500.0,0.00016438,2]
[335216192,1723986643681,-599.68333757,0.00016438,2]
[335216193,1723986643691,-500.0,0.00016438,2]
[335216194,1723986643701,-500.0,0.00016438,2]
[335216195,1723986643711,-500.0,0.00016438,2]
[335216196,1723986643721,-500.0,0.00016438,2]
[335216197,1723986643731,-500.0,0.00016438,2]
[335216198,1723986643740,-500.0,0.00016438,2]
[335216199,1723986643751,-500.0,0.00016438,2]
[335216200,1723986643761,-622.34349143,0.00016438,2]
[335216201,1723986643770,-500.0,0.00016438,2]
[335216202,1723986643780,-500.0,0.00016438,2]
[335216203,1723986643790,-1281.21,0.00016438,2]
[335216204,1723986643799,-2005.0,0.00016438,10]
[335216205,1723986643811,-500.0,0.00016438,2]
[335216206,1723986643825,-679.76,0.00016438,2]
[335216207,1723986643835,-500.0,0.00016438,2]
[335216208,1723986643845,-500.0,0.00016438,2]
[335216209,1723986643855,-703.01,0.00016438,2]
[335216210,1723986643865,-500.0,0.00016438,2]
[335216211,1723986643875,-500.0,0.00016438,2]
[335216212,1723986643886,-500.0,0.00016438,2]
[335216213,1723986643900,-391.39034035,0.00016438,2]
[335216214,1723986643910,-510.97364611,0.00016438,2]
[335216215,1723986643921,-953.91,0.00016438,2]
[335216216,1723986643931,-500.0,0.00016438,2]
[335216217,1723986643941,-671.04,0.00016438,2]
[335216218,1723986643952,-500.0,0.00016438,2]
[335216219,1723986643962,-598.3,0.00016438,2]
[335216220,1723986643974,-500.0,0.00016438,2]
[335216222,1723986643984,-500.0,0.00016438,2]
[335216224,1723986643993,-506.09,0.00016438,2]
[335216226,1723986644002,-500.0,0.00016438,2]
[335216228,1723986644012,-500.0,0.00016438,2]
[335216230,1723986644022,-500.0,0.00016438,2]
[335216231,1723986644032,-500.0,0.00016438,2]
[335216232,1723986644042,-500.0,0.00016438,2]
[335216233,1723986644053,-500.0,0.00016438,2]
[335216234,1723986644065,-500.8022216,0.00016438,2]
[335216235,1723986644074,-500.0,0.00016438,2]
[335216236,1723986644084,-500.0,0.00016438,2]
[335216237,1723986644093,-500.0,0.00016438,2]
[335216238,1723986644103,-500.0,0.00016438,2]
[335216239,1723986644112,-517.7936347,0.00016438,2]
[335216240,1723986644122,-500.0,0.00016438,2]
[335216241,1723986644132,-684.44,0.00016438,2]
[335216242,1723986644142,-500.0,0.00016438,2]
[335216243,1723986644152,-500.0,0.00016438,2]
[335216244,1723986644162,-511.00267424,0.00016438,2]
[335216245,1723986644171,-585.16,0.00016438,2]
[335216246,1723986644181,-500.0,0.00016438,2]
[335216247,1723986644191,-503.5090464,0.00016438,2]
[335216248,1723986644200,-500.0,0.00016438,2]
[335216249,1723986644210,-692.05,0.00016438,2]
[335216251,1723986644220,-500.0,0.00016438,2]
[335216252,1723986644229,-538.11,0.00016438,2]
[335216253,1723986644239,-500.0,0.00016438,2]
[335216254,1723986644249,-500.0,0.00016438,2]
[335216255,1723986644259,-620.86,0.00016438,2]
[335216256,1723986644268,-500.0,0.00016438,2]
[335216257,1723986644278,-500.0,0.00016438,2]
[335216258,1723986644287,-554.21,0.00016438,2]
[335216259,1723986644297,-500.0,0.00016438,2]
[335216260,1723986644307,-500.0,0.00016438,2]
[335216261,1723986644319,-500.0,0.00016438,2]
[335216262,1723986644329,-500.0,0.00016438,2]
[335216263,1723986644339,-500.0,0.00016438,2]
[335216264,1723986644349,-500.0,0.00016438,2]
[335216265,1723986644358,-500.0,0.00016438,2]
[335216266,1723986644368,-500.0,0.00016438,2]
[335216267,1723986644377,-630.63,0.00016438,2]
[335216268,1723986644387,-500.0,0.00016438,2]
[335216269,1723986644396,-572.0,0.00016438,2]
[335216270,1723986644406,-500.0,0.00016438,2]
[335216271,1723986644416,-770.05,0.00016438,2]
[335216272,1723986644426,-500.0,0.00016438,2]
[335216273,1723986644436,-506.11519574,0.00016438,2]
[335216274,1723986644447,-500.0,0.00016438,2]
[335216275,1723986644457,-500.0,0.00016438,2]
[335216276,1723986644467,-500.0,0.00016438,2]
[335216277,1723986644477,-500.0,0.00016438,2]
[335216278,1723986644486,-500.0,0.00016438,2]
[335216279,1723986644496,-500.0,0.00016438,2]
[335216280,1723986644506,-500.0,0.00016438,2]
[335216281,1723986644516,-500.0,0.00016438,2]
[335216282,1723986644525,-303.79305315,0.00016438,2]
[335216283,1723986645336,-494.96163168,0.0001356,2]
[335216340,1723986696555,166.4,5.479e-05,2]
[335216341,1723986727390,-779.97165007,0.00012886,2]
[335216342,1723986737549,779.97165007,0.00012886,2]
[335216343,1723986750261,749.89570563,5.479e-05,2]
[335216344,1723986785432,779.97165007,6.641e-05,2]